bitfinex/quotes_SOLUSD_20251119
["timestamp","ask_amount","ask_price","bid_price","bid_amount"]
[1763583119519,0.81,132.25,132.24,11.23537071]
[1763583120435,0.81,132.25,132.2,0.7]
[1763583120619,0.81,132.25,132.23,11.23537071]
[1763583121022,0.67,132.27,132.24,11.23537071]
[1763583121228,1.8,132.28,132.26,11.23537071]
[1763583121432,2.47,132.28,132.23,0.7]
[1763583121732,0.67,132.27,132.26,11.23537071]
[1763583121948,0.67,132.27,132.23,0.7]
[1763583122112,0.67,132.27,132.26,11.23537071]
[1763583123008,0.77,132.29,132.26,11.23537071]
[1763583123214,2.57,132.29,132.26,11.23537071]
[1763583123425,2.57,132.29,132.21,29.35633071]
[1763583123727,0.67,132.28,132.26,11.23537071]
[1763583124124,0.67,132.28,132.22,0.7]
[1763583124332,0.67,132.28,132.26,11.23537071]
[1763583125159,1.9,132.29,132.26,0.7]
[1763583125455,0.1,132.29,132.28,11.23537071]
[1763583125862,0.1,132.29,132.28,11.93537071]
[1763583127731,0.1,132.29,132.28,11.23537071]
[1763583127933,0.1,132.29,132.28,11.93537071]
[1763583128552,0.1,132.29,132.24,18.82096]
[1763583128553,0.77,132.29,132.24,18.82096]
[1763583128727,0.77,132.29,132.28,11.23537071]
[1763583129164,0.77,132.29,132.24,18.12096]
[1763583129332,0.77,132.29,132.26,11.23537071]
[1763583129529,0.77,132.29,132.27,11.23537071]
[1763583129748,0.1,132.29,132.28,11.23537071]
[1763583130061,0.77,132.29,132.28,11.23537071]
[1763583131331,0.77,132.29,132.25,48.4]
[1763583131560,0.1,132.29,132.28,11.23537071]
[1763583132153,0.1,132.29,132.28,0.7]
[1763583132365,0.1,132.29,132.28,11.93537071]
[1763583135572,0.1,132.29,132.28,21.7241984]
[1763583137655,0.77,132.29,132.27,1.8]
[1763583137960,0.1,132.29,132.28,11.23537071]
[1763583139285,0.1,132.29,132.28,11.93537071]
[1763583143054,0.1,132.29,132.28,11.94537071]
[1763583143273,0.1,132.29,132.28,11.23537071]
[1763583143462,0.1,132.29,132.28,11.94537071]
[1763583143871,0.1,132.29,132.28,11.23537071]
[1763583145060,0.1,132.29,132.28,11.94537071]
[1763583146092,0.1,132.29,132.28,11.23537071]
[1763583146776,0.1,132.29,132.28,11.91537071]
[1763583147580,0.1,132.29,132.28,11.23537071]
[1763583147786,0.78,132.29,132.28,11.23537071]
[1763583147996,0.1,132.29,132.28,11.23537071]
[1763583150906,0.1,132.29,132.28,4.69293965]
[1763583153515,0.68,132.33,132.28,10.0658793]
[1763583153714,0.68,132.33,132.32,4.69293965]
[1763583154100,0.68,132.33,132.28,18.12096]
[1763583154290,0.68,132.33,132.32,4.69293965]
[1763583156914,0.68,132.33,132.31,4.69293965]
[1763583157143,0.68,132.33,132.26,20.60096]
[1763583157309,0.68,132.33,132.31,4.69293965]
[1763583157816,10.46882769,132.33,132.32,4.69293965]
[1763583158317,10.46882769,132.33,132.31,4.69293965]
[1763583158502,0.68,132.32,132.31,4.69293965]
[1763583159104,0.68,132.32,132.3,4.69293965]
[1763583159306,0.68,132.32,132.24,0.68]
[1763583159307,2.48,132.32,132.24,18.12096]
[1763583159619,2.48,132.32,132.28,4.69293965]
[1763583159918,9.78882769,132.3,132.27,4.69293965]
[1763583160120,1.8,132.29,132.27,4.69293965]
[1763583160412,0.68,132.28,132.27,4.69293965]
[1763583160624,0.68,132.28,132.26,4.69293965]
[1763583160826,0.68,132.28,132.22,18.12096]
[1763583161010,0.68,132.28,132.25,4.69293965]
[1763583161323,0.68,132.28,132.26,4.69293965]
[1763583161926,0.68,132.28,132.21,18.12096]
[1763583162126,0.68,132.28,132.23,4.69293965]
[1763583162127,14.48176734,132.27,132.23,4.69293965]
[1763583162292,9.78882769,132.27,132.24,4.69293965]
[1763583162622,0.68,132.26,132.24,4.69293965]
[1763583162823,1.8,132.25,132.23,4.69293965]
[1763583163007,0.68,132.24,132.23,4.69293965]
[1763583163524,0.68,132.24,132.19,18.80096]
[1763583163719,0.68,132.24,132.23,4.69293965]
[1763583164420,9.78882769,132.27,132.23,4.69293965]
[1763583164421,0.68,132.26,132.23,4.69293965]
[1763583164622,0.68,132.25,132.2,0.68]
[1763583164926,0.68,132.25,132.2,48.38]
[1763583165105,0.68,132.25,132.21,0.68]
[1763583165312,0.68,132.25,132.21,48.38]
[1763583165706,0.68,132.25,132.24,4.69293965]
[1763583167314,0.68,132.25,132.21,47.7]
[1763583167617,0.68,132.25,132.24,4.69293965]
[1763583168830,0.68,132.25,132.24,3.00617395]
[1763583169729,0.68,132.25,132.21,47.7]
[1763583169906,0.68,132.25,132.24,3.00617395]
[1763583171912,0.68,132.25,132.19,19.92096]
[1763583172116,0.68,132.25,132.24,3.00617395]
[1763583172337,0.68,132.25,132.23,3.00617395]
[1763583172942,0.67,132.28,132.24,3.00617395]
[1763583173235,2.47,132.27,132.26,3.00617395]
[1763583174332,0.67,132.27,132.26,3.00617395]
[1763583176520,2.47,132.27,132.26,3.00617395]
[1763583176721,2.47,132.27,132.23,12.7046958]
[1763583177840,9.78882769,132.3,132.26,3.00617395]
[1763583178040,0.1,132.39,132.29,3.00617395]
[1763583178041,2.47,132.31,132.29,3.00617395]
[1763583178343,1.8,132.32,132.3,3.00617395]
[1763583178540,2.47,132.32,132.31,3.00617395]
[1763583178726,1.8,132.32,132.23,61.5246958]
[1763583179042,1.8,132.32,132.3,3.00617395]
[1763583179237,0.67,132.31,132.3,3.00617395]
[1763583179427,10.45882769,132.31,132.24,0.68]
[1763583179627,10.45882769,132.31,132.27,3.00617395]
[1763583179843,0.67,132.3,132.27,3.00617395]
[1763583180431,1.8,132.29,132.27,3.00617395]
[1763583180945,0.67,132.28,132.27,3.00617395]
[1763583181450,0.67,132.28,132.2,0.68]
[1763583181645,9.78882769,132.27,132.2,0.68]
[1763583181845,9.78882769,132.27,132.25,3.00617395]
[1763583182055,6.30114191,132.35,132.2,0.68]
[1763583182056,2.47,132.26,132.2,0.68]
[1763583182347,2.47,132.26,132.25,3.00617395]
[1763583182739,0.67,132.26,132.21,0.68]
[1763583182927,2.47,132.26,132.25,3.00617395]
[1763583183744,2.47,132.26,132.19,18.12096]
[1763583183977,9.78882769,132.24,132.19,47.7]
[1763583184126,12.79500164,132.24,132.19,50.70617395]
[1763583184327,0.67,132.23,132.2,3.00617395]
[1763583184546,11.58882769,132.22,132.19,3.00617395]
[1763583184933,0.67,132.21,132.19,3.00617395]
[1763583185268,2.47,132.22,132.2,3.00617395]
[1763583185564,0.67,132.22,132.21,3.00617395]
[1763583185861,2.47,132.23,132.21,3.00617395]
[1763583186025,2.47,132.23,132.2,47.7]
[1763583186026,2.47,132.23,132.22,3.00617395]
[1763583186226,0.67,132.25,132.22,3.00617395]
[1763583186426,1.8,132.23,132.2,48.38]
[1763583186626,1.8,132.23,132.2,47.7]
[1763583186838,0.67,132.22,132.2,47.7]
[1763583187658,0.67,132.22,132.2,50.70617395]
[1763583187865,0.67,132.22,132.2,47.7]
[1763583188148,0.67,132.22,132.2,50.70617395]
[1763583188357,1.8,132.23,132.21,3.00617395]
[1763583188657,9.78882769,132.26,132.22,3.00617395]
[1763583188658,27.90978769,132.26,132.22,3.00617395]
[1763583188826,2.47,132.25,132.24,3.00617395]
[1763583189460,2.47,132.25,132.23,3.00617395]
[1763583189631,0.67,132.24,132.18,0.68]
[1763583190344,0.67,132.24,132.16,66.50096]
[1763583190662,9.78882769,132.23,132.16,66.50096]
[1763583191031,0.67,132.22,132.16,66.50096]
[1763583191228,1.8,132.21,132.16,66.50096]
[1763583191465,0.67,132.2,132.16,18.12096]
[1763583191660,18.79096,132.2,132.11,0.68]
[1763583191965,18.79096,132.2,132.1,9.78882769]
[1763583191966,1.8,132.19,132.13,18.12096]
[1763583192335,0.67,132.22,132.14,0.68]
[1763583192528,1.8,132.21,132.14,0.68]
[1763583193561,0.67,132.22,132.14,0.68]
[1763583194055,2.47,132.22,132.14,0.68]
[1763583195441,0.67,132.21,132.14,0.68]
[1763583197330,1.8,132.22,132.14,0.68]
[1763583197730,2.47,132.22,132.14,0.68]
[1763583198768,0.67,132.24,132.15,18.12096]
[1763583198946,2.47,132.24,132.16,2.48]
[1763583199578,0.67,132.24,132.17,0.68]
[1763583199778,2.47,132.26,132.17,0.68]
[1763583199946,2.47,132.26,132.19,18.12096]
[1763583200352,0.67,132.25,132.2,0.69]
[1763583203251,0.67,132.25,132.16,1.8]
[1763583203252,0.67,132.25,132.18,0.69]
[1763583203457,0.67,132.25,132.18,18.81096]
[1763583204256,0.67,132.25,132.18,18.12096]
[1763583204570,0.67,132.25,132.19,0.69]
[1763583205353,0.67,132.25,132.19,48.39]
[1763583205786,0.67,132.25,132.2,0.7]
[1763583206070,0.67,132.25,132.19,47.7]
[1763583207258,27.90978769,132.24,132.19,47.7]
[1763583207671,0.66,132.23,132.19,47.7]
[1763583208070,1.8,132.22,132.19,47.7]
[1763583208455,0.66,132.21,132.19,47.7]
[1763583209380,0.66,132.23,132.19,47.7]
[1763583214276,1.8,132.22,132.19,47.7]
[1763583214686,0.66,132.21,132.17,47.7]
[1763583215285,3.00729119,132.2,132.14,46.08]
[1763583215582,9.78882769,132.14,132.1,23.45571737]
[1763583215784,18.12096,132.19,132.1,22.75571737]
[1763583215964,29.70978769,132.18,132.14,0.7]
[1763583216166,1.8,132.17,132.14,0.7]
[1763583216686,9.78882769,132.22,132.14,0.7]
[1763583216979,1.8,132.19,132.14,0.7]
[1763583218882,0.56,132.22,132.14,0.7]
[1763583219087,0.56,132.22,132.15,18.12096]
[1763583219088,1.8,132.21,132.15,18.12096]
[1763583219772,1.8,132.21,132.16,0.7]
[1763583221563,0.56,132.25,132.17,18.12096]
[1763583221782,1.8,132.24,132.18,0.7]
[1763583221968,1.8,132.24,132.18,18.82096]
[1763583222372,1.8,132.24,132.19,0.7]
[1763583223182,1.8,132.25,132.19,0.7]
[1763583225266,0.56,132.28,132.19,0.7]
[1763583225586,1.8,132.27,132.19,0.7]
[1763583225788,1.8,132.26,132.19,0.7]
[1763583225978,1.8,132.27,132.19,0.7]
[1763583227094,2.36,132.27,132.19,0.7]
[1763583228692,1.8,132.27,132.19,0.7]
[1763583229698,2.36,132.28,132.19,0.7]
[1763583230279,22.60440027,132.32,132.23,18.12096]
[1763583230483,0.56,132.32,132.23,18.12096]
[1763583230708,5.64999787,132.34,132.24,2.49]
[1763583230900,2.36,132.34,132.24,2.49]
[1763583231102,0.56,132.33,132.25,0.69]
[1763583232097,18.12096,132.32,132.25,0.69]
[1763583232305,0.56,132.31,132.25,0.69]
[1763583234102,2.36,132.32,132.25,0.69]
[1763583235073,0.56,132.31,132.25,0.69]
[1763583235405,0.56,132.31,132.25,18.81096]
[1763583236388,0.56,132.31,132.23,0.69]
[1763583236698,0.56,132.31,132.24,18.12096]
[1763583237105,0.56,132.31,132.24,18.81096]
[1763583237318,0.56,132.31,132.24,18.12096]
[1763583237602,0.56,132.31,132.25,0.69]
[1763583238896,0.56,132.33,132.25,0.69]
[1763583239088,1.8,132.32,132.25,0.69]
[1763583239982,2.36,132.33,132.25,0.69]
[1763583240582,0.56,132.37,132.29,18.12096]
[1763583240778,1.8,132.36,132.29,18.12096]
[1763583240974,2.36,132.36,132.3,0.69]
[1763583241178,2.36,132.36,132.3,18.81096]
[1763583241473,2.36,132.36,132.3,18.12096]
[1763583241683,2.36,132.36,132.31,0.69]
[1763583242296,1.8,132.36,132.31,0.69]
[1763583244910,1.8,132.36,132.31,0.69]
[1763583246880,2.36,132.36,132.31,0.69]
[1763583247179,1.8,132.36,132.31,0.69]
[1763583247608,11.31425167,132.39,132.31,0.69]
[1763583247609,0.1,132.39,132.31,0.69]
[1763583247904,1.8,132.37,132.31,0.69]
[1763583248114,0.1,132.39,132.34,18.12096]
[1763583248285,0.1,132.39,132.34,62.90096]
[1763583248483,0.1,132.39,132.35,0.69]
[1763583249747,9.78882769,132.38,132.32,62.90096]
[1763583250016,9.78882769,132.34,132.27,3.72087706]
[1763583250184,1.8,132.33,132.27,0.69]
[1763583250380,9.78882769,132.32,132.25,0.69]
[1763583250604,10.34882769,132.32,132.25,0.69]
[1763583252997,1.8,132.31,132.25,0.69]
[1763583253997,1.8,132.33,132.25,0.69]
[1763583255697,2.36,132.33,132.25,0.69]
[1763583256209,1.8,132.33,132.25,0.69]
[1763583256782,1.3,132.33,132.25,0.69]
[1763583257007,0.56,132.34,132.25,0.69]
[1763583257314,1.8,132.34,132.28,18.12096]
[1763583257515,1.8,132.34,132.28,62.90096]
[1763583257716,1.8,132.34,132.29,0.69]
[1763583258319,2.36,132.34,132.29,0.69]
[1763583259405,1.8,132.34,132.29,0.69]
[1763583259806,2.36,132.35,132.29,0.69]
[1763583261114,0.56,132.38,132.29,0.69]
[1763583261304,1.8,132.37,132.32,18.12096]
[1763583261504,1.8,132.37,132.32,62.90096]
[1763583261728,2.36,132.37,132.33,0.69]
[1763583262504,2.36,132.37,132.32,62.90096]
[1763583262505,1.8,132.37,132.32,62.90096]
[1763583262705,0.56,132.36,132.32,63.59096]
[1763583263231,2.36,132.37,132.32,63.59096]
[1763583265227,1.8,132.37,132.33,0.69]
[1763583265438,0.1,132.39,132.33,45.47]
[1763583265732,0.1,132.39,132.36,18.12096]
[1763583266138,0.1,132.39,132.37,0.66]
[1763583271950,0.1,132.39,132.37,63.56096]
[1763583272640,0.1,132.39,132.37,62.90096]
[1763583273347,0.1,132.39,132.37,63.56096]
[1763583273514,0.1,132.39,132.37,62.90096]
[1763583273713,0.1,132.39,132.37,44.78]
[1763583275154,0.66,132.39,132.34,0.66]
[1763583276320,0.1,132.39,132.34,0.66]
[1763583276650,0.66,132.39,132.34,0.66]
[1763583282351,0.1,132.39,132.34,0.66]
[1763583284552,0.66,132.39,132.34,0.66]
[1763583285524,0.66,132.39,132.34,45.44]
[1763583286047,0.1,132.39,132.35,0.66]
[1763583286236,0.1,132.39,132.35,45.44]
[1763583286646,0.1,132.39,132.36,0.66]
[1763583288058,0.1,132.39,132.35,44.78]
[1763583288359,0.56,132.38,132.35,44.78]
[1763583290162,0.56,132.38,132.35,45.47]
[1763583291860,1.9,132.39,132.35,44.78]
[1763583292048,2.46,132.39,132.35,45.47]
[1763583292463,0.56,132.38,132.35,45.47]
[1763583293046,0.56,132.38,132.35,44.78]
[1763583293556,0.56,132.38,132.35,45.47]
[1763583294269,0.56,132.38,132.35,44.78]
[1763583294798,0.56,132.38,132.35,45.47]
[1763583295748,2.46,132.39,132.35,45.47]
[1763583296047,0.56,132.38,132.35,44.78]
[1763583296250,9.78882769,132.37,132.33,44.78]
[1763583296768,0.56,132.36,132.33,44.78]
[1763583297072,1.8,132.35,132.3,63.59096]
[1763583297241,1.8,132.35,132.31,0.69]
[1763583299680,0.56,132.36,132.31,0.69]
[1763583299963,2.36,132.36,132.31,0.69]
[1763583300381,1.8,132.36,132.31,0.69]
[1763583300680,0.68,132.38,132.31,0.2206]
[1763583300882,12.36882769,132.39,132.3,62.90096]
[1763583301189,10.56882769,132.39,132.3,62.90096]
[1763583301357,0.1,132.39,132.34,18.12096]
[1763583301553,0.78,132.39,132.34,62.90096]
[1763583302380,0.1,132.39,132.34,62.90096]
[1763583302561,0.1,132.39,132.35,0.69]
[1763583303269,0.1,132.39,132.38,18.12096]
[1763583303570,0.1,132.41,132.38,63.59096]
[1763583303773,0.1,132.41,132.39,0.69]
[1763583304582,0.78,132.41,132.38,18.12096]
[1763583304780,0.78,132.41,132.35,18.12096]
[1763583304781,2.58,132.41,132.35,18.12096]
[1763583305156,0.68,132.4,132.35,18.12096]
[1763583305675,9.78882769,132.39,132.32,0.69]
[1763583305876,9.78882769,132.39,132.34,18.12096]
[1763583306062,2.48,132.4,132.35,18.12096]
[1763583306380,0.68,132.39,132.34,62.90096]
[1763583306555,0.68,132.39,132.35,0.69]
[1763583307058,0.68,132.39,132.34,62.90096]
[1763583307360,0.68,132.39,132.34,63.59096]
[1763583307558,0.68,132.39,132.34,62.90096]
[1763583307768,0.68,132.39,132.35,0.69]
[1763583308665,0.68,132.39,132.34,62.90096]
[1763583308866,0.68,132.39,132.34,63.59096]
[1763583309052,10.46882769,132.39,132.34,44.78]
[1763583309254,10.46882769,132.39,132.34,45.47]
[1763583309564,0.68,132.38,132.34,0.69]
[1763583309878,0.68,132.38,132.34,18.81096]
[1763583310050,1.8,132.38,132.35,0.69]
[1763583310452,0.1,132.41,132.35,45.47]
[1763583310864,0.1,132.41,132.36,0.69]
[1763583311062,0.78,132.41,132.36,0.69]
[1763583312062,3.78069079,132.41,132.35,44.78]
[1763583312462,0.68,132.4,132.35,44.78]
[1763583312669,3.00069079,132.39,132.35,44.78]
[1763583313064,0.68,132.38,132.34,18.12096]
[1763583313263,0.68,132.38,132.34,18.81096]
[1763583313981,1.8,132.4,132.35,18.81096]
[1763583314381,1.8,132.4,132.36,0.69]
[1763583314965,2.48,132.4,132.36,0.69]
[1763583315361,0.68,132.39,132.35,18.12096]
[1763583315558,1.8,132.4,132.36,0.69]
[1763583315786,2.48,132.4,132.36,0.69]
[1763583315991,1.8,132.4,132.36,0.69]
[1763583316286,0.68,132.39,132.36,0.69]
[1763583316690,0.68,132.39,132.35,18.12096]
[1763583316991,0.68,132.39,132.35,18.81096]
[1763583317297,1.8,132.4,132.36,0.69]
[1763583317657,2.48,132.4,132.36,0.69]
[1763583317858,1.8,132.4,132.36,0.69]
[1763583318288,1.8,132.4,132.36,45.47]
[1763583318692,0.1,132.41,132.39,18.12096]
[1763583318889,0.1,132.41,132.39,64.70096]
[1763583319190,0.1,132.41,132.4,0.69]
[1763583319695,0.1,132.41,132.39,64.70096]
[1763583319881,0.1,132.41,132.39,63.58096]
[1763583320195,0.1,132.41,132.37,0.68]
[1763583320196,0.77,132.41,132.37,0.68]
[1763583320370,0.77,132.41,132.37,18.80096]
[1763583322101,0.1,132.41,132.38,0.68]
[1763583322675,0.1,132.41,132.39,18.12096]
[1763583322987,0.77,132.41,132.39,62.90096]
[1763583323306,0.77,132.41,132.39,44.78]
[1763583323671,0.1,132.41,132.39,44.78]
[1763583323866,0.1,132.41,132.4,0.68]
[1763583324100,0.1,132.41,132.38,0.68]
[1763583325202,0.77,132.41,132.37,62.90096]
[1763583325500,0.1,132.41,132.37,62.90096]
[1763583325675,0.78,132.41,132.37,63.56096]
[1763583327311,0.78,132.41,132.37,18.78096]
[1763583327507,0.1,132.41,132.38,0.66]
[1763583327719,0.1,132.41,132.38,18.78096]
[1763583330313,0.1,132.41,132.39,0.66]
[1763583331601,0.1,132.43,132.42,44.68]
[1763583331798,0.1,132.43,132.42,44.58]
[1763583332115,0.1,132.43,132.42,45.24]
[1763583332297,0.1,132.43,132.42,44.58]
[1763583332588,0.1,132.43,132.42,45.24]
[1763583334311,0.78,132.43,132.38,0.66]
[1763583334514,0.1,132.43,132.39,0.66]
[1763583335314,0.78,132.43,132.39,18.78096]
[1763583335902,0.1,132.43,132.4,0.66]
[1763583338528,0.1,132.43,132.39,18.12096]
[1763583338529,0.1,132.43,132.38,0.66]
[1763583338816,0.1,132.43,132.39,0.66]
[1763583339187,0.78,132.43,132.39,0.66]
[1763583340812,0.78,132.43,132.36,0.66]
[1763583340998,7.91961852,132.43,132.36,0.66]
[1763583341405,0.68,132.42,132.36,0.66]
[1763583342732,0.68,132.42,132.35,18.78096]
[1763583342906,7.81961852,132.42,132.35,18.78096]
[1763583343424,0.68,132.41,132.35,18.78096]
[1763583343633,1.8,132.4,132.35,18.78096]
[1763583344013,0.68,132.39,132.33,18.12096]
[1763583344208,2.48,132.4,132.34,0.66]
[1763583344608,0.68,132.39,132.34,0.66]
[1763583345225,2.48,132.39,132.34,0.66]
[1763583346505,1.8,132.39,132.34,0.66]
[1763583346704,2.48,132.41,132.34,0.66]
[1763583347913,0.68,132.4,132.34,45.24]
[1763583348335,0.68,132.4,132.35,0.66]
[1763583348626,0.68,132.4,132.34,44.58]
[1763583348832,0.68,132.4,132.34,45.24]
[1763583349722,0.68,132.4,132.35,0.66]
[1763583350239,0.68,132.4,132.34,44.58]
[1763583350411,3.67998177,132.4,132.34,44.58]
[1763583350811,0.7,132.39,132.34,44.58]
[1763583351710,12.78880946,132.35,132.28,3.02995871]
[1763583351918,2.5,132.34,132.29,0.72]
[1763583352228,5.49998177,132.34,132.29,0.72]
[1763583352543,0.7,132.33,132.29,0.72]
[1763583353518,11.9058217,132.33,132.26,0.72]
[1763583353722,11.2058217,132.32,132.28,18.12096]
[1763583353917,11.9058217,132.32,132.28,18.12096]
[1763583354234,0.7,132.31,132.26,0.72]
[1763583356114,0.7,132.31,132.27,0.72]
[1763583356316,1.8,132.3,132.25,18.84096]
[1763583356622,0.7,132.29,132.25,44.58]
[1763583357540,11.9058217,132.29,132.25,44.58]
[1763583357928,0.7,132.28,132.25,44.58]
[1763583360342,11.2058217,132.27,132.23,62.70096]
[1763583360640,1.8,132.26,132.23,62.70096]
[1763583361027,2.5,132.26,132.23,62.70096]
[1763583361228,1.8,132.26,132.23,62.70096]
[1763583361431,2.5,132.26,132.23,62.70096]
[1763583361637,2.5,132.26,132.2,0.2]
[1763583361638,9.78882769,132.23,132.2,0.2]
[1763583361837,11.2058217,132.21,132.2,0.2]
[1763583362140,20.99464939,132.21,132.2,0.2]
[1763583362370,10.48882769,132.21,132.2,0.2]
[1763583362916,11.2058217,132.25,132.2,0.2]
[1763583363143,9.78882769,132.23,132.2,0.2]
[1763583363329,1.8,132.22,132.2,0.2]
[1763583363522,2.5,132.22,132.2,0.2]
[1763583363750,0.7,132.21,132.2,0.2]
[1763583363946,1.8,132.22,132.2,0.2]
[1763583364142,2.5,132.22,132.2,0.2]
[1763583364338,1.8,132.21,132.2,0.2]
[1763583365570,23.49464939,132.21,132.2,0.2]
[1763583366274,9.78882769,132.2,132.19,0.2]
[1763583366457,21.69464939,132.2,132.19,0.2]
[1763583367247,23.49464939,132.2,132.19,0.2]
[1763583367666,23.49464939,132.2,132.14,0.72]
[1763583367868,11.2058217,132.15,132.14,0.72]
[1763583369655,11.2058217,132.15,132.12,18.84096]
[1763583369848,11.2058217,132.13,132.12,18.84096]
[1763583370052,11.2058217,132.13,132.09,18.12096]
[1763583370250,1.8,132.15,132.09,18.12096]
[1763583370581,11.2058217,132.12,132.09,18.12096]
[1763583370786,11.2058217,132.11,132.1,0.72]
[1763583371083,11.2058217,132.11,132.08,0.72]
[1763583371284,11.2058217,132.11,132.06,0.2]
[1763583371285,11.2058217,132.09,132.06,0.92]
[1763583371596,11.2058217,132.07,132.06,0.92]
[1763583373481,11.2058217,132.07,132.06,0.2]
[1763583376700,11.9058217,132.07,132.06,0.2]
[1763583377482,11.2058217,132.07,132.06,0.2]
[1763583377778,11.2058217,132.07,132.06,0.92]
[1763583379465,11.2058217,132.12,132.06,10.70882769]
[1763583379670,11.2058217,132.12,132.09,18.12096]
[1763583379895,11.2058217,132.1,132.09,18.12096]
[1763583380612,11.2058217,132.1,132.09,18.77096]
[1763583385473,11.2058217,132.1,132.09,18.12096]
[1763583385674,11.2058217,132.1,132.09,0.65]
[1763583386595,11.2058217,132.1,132.09,18.77096]
[1763583387506,11.2058217,132.1,132.09,0.65]
[1763583388723,11.2058217,132.1,132.09,18.77096]
[1763583389013,11.2058217,132.1,132.09,28.55978769]
[1763583390020,11.2058217,132.21,132.1,9.78882769]
[1763583390021,11.2058217,132.11,132.1,9.78882769]
[1763583390213,1.8,132.17,132.1,10.43882769]
[1763583390415,1.8,132.19,132.13,18.12096]
[1763583390586,1.8,132.19,132.14,0.65]
[1763583390788,2.45,132.19,132.14,0.65]
[1763583391392,2.45,132.19,132.14,46.95]
[1763583391597,11.2058217,132.15,132.14,46.95]
[1763583392527,11.2058217,132.15,132.14,58.53882769]
[1763583392691,11.2058217,132.18,132.17,18.12096]
[1763583392889,0.1,132.24,132.17,76.00978769]
[1763583393228,11.2058217,132.2,132.17,78.00978768]
[1763583393389,11.2058217,132.2,132.18,0.65]
[1763583393791,11.2058217,132.2,132.18,46.95]
[1763583394287,11.2058217,132.21,132.2,18.12096]
[1763583394493,11.2058217,132.21,132.2,19.92096]
[1763583394790,11.2058217,132.21,132.2,20.57096]
[1763583399712,0.1,132.24,132.2,66.87096]
[1763583399926,11.2058217,132.23,132.21,0.65]
[1763583400114,0.1,132.24,132.23,18.12096]
[1763583400329,0.1,132.24,132.23,66.87096]
[1763583401113,11.3058217,132.24,132.23,2.45]
[1763583401711,11.3058217,132.24,132.23,1.8]
[1763583402039,11.3058217,132.24,132.23,2.45]
[1763583402740,11.3058217,132.24,132.23,1.8]
[1763583402921,11.9558217,132.24,132.22,1.8]
[1763583403106,11.2058217,132.23,132.22,1.8]
[1763583403306,11.8558217,132.23,132.22,1.8]
[1763583404133,11.8558217,132.23,132.18,0.65]
[1763583404315,11.2058217,132.19,132.16,9.78882769]
[1763583404633,0.65,132.23,132.19,18.12096]
[1763583404807,11.2058217,132.2,132.19,18.12096]
[1763583405008,11.2058217,132.2,132.19,19.92096]
[1763583405500,11.2058217,132.2,132.19,20.57096]